Cogmind - Beta 17.1 @@@ ROGUE MODE // 2026.08.31 @ 18:06:06 Player: eph7ra Result: Destroyed by B-86 Titan with Hardcell Cannon Performance ------------- Evolutions (6) 3000 Regions Visited (12) 2400 Robots Destroyed (68) 340 Value Destroyed (2325) 2325 Prototype IDs (29) 580 Alien Tech Used (0) 0 Bonus (593) 593 TOTAL SCORE: 9238 Bonus ------- Follower Combat Kills 293 Aligned with FarCom 300 Cogmind --------- Core Integrity 0/1150 Matter 251/300 Energy 100/100 System Corruption 13% Temperature Cool (1) Movement Flying (115) Ox1 Location -4/Factory Parts ------- > --- POWER (2) -------- (None) > --- PROPULSION (3) --- VTOL Module > --- UTILITY (12) ----- Improved Signal Interpreter > --- WEAPON (2) ------- Railgun > --- INVENTORY (5) ---- Angular Momentum Engine Advanced System Shield Hypervelocity Gauss Cannon Improved Plasma Cutter Peak State ------------ > --- POWER ------------ Improved Deuterium Engine Micro Fission Core > --- PROPULSION ------- Improved Medium Treads Improved Medium Treads Armored Medium Treads > --- UTILITY ---------- Advanced Heat Sink Advanced Heat Sink Large Storage Unit Energy Well Improved Signal Interpreter Improved Terrain Scanner Improved Terrain Scan Processor Targeting Computer Improved Focal Shield Trap Reconfigurator > --- WEAPON ----------- Wave Gun Improved Remote Datajack > --- INVENTORY -------- Angular Momentum Engine Micro Fission Core Light Treads Compact Wheel Compact Wheel Flight Unit VTOL Module VTOL Module Small Storage Unit Advanced System Shield Gauss Rifle Heavy Machine Gun Mini Grenade Launcher Plasma Cutter Blade Saw [Rating: 83] Favorites ----------- Power Light Nuclear Core Engine Light Deuterium Engine Power Core Light Nuclear Core Propulsion Aluminum Leg Treads Improved Medium Treads Leg Aluminum Leg Flight Unit VTOL Module Utility Large Storage Unit Device Trap Reconfigurator Storage Large Storage Unit Processor Improved Signal Interpreter Hackware Hacking Suite Protection Hardened Heavy Armor Plating Weapon Mini Grenade Launcher Energy Gun Beam Rifle Ballistic Gun Gauss Rifle Ballistic Cannon Assault Cannon Launcher Mini Grenade Launcher Special Weapon Remote Datajack Slashing Weapon Blade Saw Special Melee Weapon Dirty Datajack Build | -11 -10 -9 -9 -9 -8 -8 -7 -6 -5 -5 -5 -4 ------- Run | Yrd Mat Mat Min Exi Min Mat Fac Fac Fac Upp Upp Fac Slots Evolved 12 | . . 2 . . . 2 2 2 2 . . 2 Power 1 | . . . . . . . 1 . . . . . Propulsion 1 | . . 1 . . . . . . . . . . Utility 10 | . . 1 . . . 2 1 2 2 . . 2 Weapon . | . . . . . . . . . . . . . Parts Attached 94 | 6 3 11 . . 3 13 5 12 22 9 . 10 Power 16 | 1 . 1 . . . 2 1 2 4 3 . 2 Engine 4 | 1 . 1 . . . 1 . . 1 . . . Core 12 | . . . . . . 1 1 2 3 3 . 2 Reactor . | . . . . . . . . . . . . . Propulsion 23 | 2 . 1 . . 3 3 . 3 5 2 . 4 Treads 4 | . . . . . . . . 3 1 . . . Leg 9 | 2 . 1 . . 3 3 . . . . . . Wheel . | . . . . . . . . . . . . . Hover . | . . . . . . . . . . . . . Flight 10 | . . . . . . . . . 4 2 . 4 Utility 28 | 1 . 4 . . . 4 2 4 9 1 . 3 Device 15 | . . 3 . . . 3 1 2 4 1 . 1 Storage 3 | 1 . 1 . . . . . . 1 . . . Processor 4 | . . . . . . . 1 1 2 . . . Hackware 2 | . . . . . . . . 1 1 . . . Protection 4 | . . . . . . 1 . . 1 . . 2 Artifact . | . . . . . . . . . . . . . Weapon 27 | 2 3 5 . . . 4 2 3 4 3 . 1 Energy Gun 9 | 2 2 1 . . . 1 . . 3 . . . Energy Cannon . | . . . . . . . . . . . . . Ballistic Gun 8 | . . 1 . . . 1 2 2 . 1 . 1 Ballistic Cannon 3 | . . 1 . . . 1 . . . 1 . . Launcher 2 | . 1 1 . . . . . . . . . . Special Weapon 3 | . . 1 . . . . . 1 1 . . . Impact Weapon . | . . . . . . . . . . . . . Slashing Weapon 1 | . . . . . . 1 . . . . . . Piercing Weapon . | . . . . . . . . . . . . . Special Melee Weapon 1 | . . . . . . . . . . 1 . . Unidentified Prototypes 1 | . . . . . . . . . 1 . . . Corrupted Parts 1 | . . . . . . . . . . . . 1 System Corruption 10 | . . . . . . . . . . . . 10 Parts Lost 53 | . . . . . 1 5 1 4 18 11 . 13 Power 12 | . . . . . . 1 1 1 3 3 . 3 Propulsion 16 | . . . . . 1 2 . 1 4 5 . 3 Utility 17 | . . . . . . 1 . 2 7 2 . 5 Weapon 8 | . . . . . . 1 . . 4 1 . 2 Highest Loss Streak 11 | . . . . . 1 3 1 3 6 3 . 11 To Critical Strikes 1 | . . . . . . 1 . . . . . . Average Backups 11 | 3 6 8 10 11 11 13 15 14 14 5 5 4 Power 1 | . 1 . 1 1 1 1 1 . 1 2 2 1 Propulsion 4 | 2 4 4 5 5 5 5 6 5 5 . . . Utility 2 | . . . 1 1 2 2 3 2 2 1 1 1 Weapon 2 | . 1 1 2 3 2 2 3 3 2 . 1 1 Tool/Special . | . . . . . . . . . . . . . Unused Backups 9 | . . 1 . . . 1 . 1 2 1 . 3 Power 2 | . . 1 . . . . . . . . . 1 Propulsion 3 | . . . . . . . . 1 2 . . . Utility 2 | . . . . . . . . . . 1 . 1 Weapon 1 | . . . . . . 1 . . . . . . Tool/Special 1 | . . . . . . . . . . . . 1 Average Slot Usage (%) 85 | . 85 91 100 100 99 86 81 91 87 40 29 39 Engine 5 | . 14 11 11 11 11 6 . . 1 . . . Core 4 | . . . . . . 2 6 12 8 3 . 4 Treads 3 | . . . . . . . . 5 14 . . . Leg 18 | . 28 30 33 33 32 23 23 13 . . . . Device 17 | . . 15 22 22 22 22 15 19 20 . . 1 Storage 8 | . 14 11 11 11 11 9 7 6 7 1 . . Processor 6 | . . . . . . . 4 8 15 17 17 12 Hackware 1 | . . . . . . . . 6 2 2 . . Protection 2 | . . . . . . 4 7 3 . . . 5 Energy Gun 3 | . 21 11 . . 6 4 . . 3 . . . Ballistic Gun 5 | . . 7 11 11 1 4 8 5 4 1 5 2 Ballistic Cannon 1 | . . 1 . . 9 4 . . . . . . Launcher 3 | . 6 1 10 11 4 3 . . 1 1 . . Slashing Weapon 1 | . . . . . . 1 5 2 . . . . Peak Build Rating 83 | 6 7 15 16 19 23 41 44 57 83 28 19 57 Average Rating 35 | 4 6 12 15 17 22 32 42 52 63 19 19 39 On Entrance 22 | . 6 7 15 16 19 23 41 44 52 25 19 19 Avg Prop Armor Cover (%) . | . . . . . . . . . . . . . Naked Turns . | . . . . . . . . . . . . . Heaviest Build 65 | 14 16 35 35 32 35 54 55 60 65 15 5 21 Greatest Support 87 | 20 20 30 30 30 40 49 42 80 87 12 3 22 Greatest Overweight (x) 18 | 4 . 1 1 1 1 3 1 1 18 2 1 3 Average Overweight (x) . | . . . 1 1 . . 1 . . . 1 . Largest Inventory Capacity 15 | 8 8 15 15 15 15 15 15 15 15 8 5 5 Average Capacity 13 | 7 8 12 15 15 15 15 15 15 14 5 5 5 Most Carried 15 | 6 8 10 11 15 15 15 15 15 15 8 5 5 Average Carried 12 | 3 6 9 10 13 14 14 14 14 14 5 5 4 Final Capacity 15 | 8 8 15 15 15 15 15 15 15 8 5 5 5 Final Carried 15 | 6 7 10 11 15 15 15 15 15 7 5 5 4 Class Distribution -------------------- 61% | Mutant 19% | Skirmisher 12% | Scavenger-Mutant Dominant Class ---------------- Mutant | -10/Materials Mutant | -9/Materials Mutant | -9/Mines Mutant | -9/Exiles Scavenger-Skirmisher | -8/Mines Skirmisher | -8/Materials Mutant | -7/Factory Mutant | -6/Factory Mutant | -5/Factory Mutant | -5/Upper Caves Mutant | -5/Upper Caves Mutant | -4/Factory Resources | -11 -10 -9 -9 -9 -8 -8 -7 -6 -5 -5 -5 -4 ----------- Run | Yrd Mat Mat Min Exi Min Mat Fac Fac Fac Upp Upp Fac Matter Collected 2166 | 260 . 304 10 . 51 388 113 174 494 342 . 30 Remotely . | . . . . . . . . . . . . . Salvage Created 2206 | 64 . 283 . . 118 386 231 195 749 102 . 78 Parts 126 | 3 . 27 . . 5 27 7 19 25 8 . 5 Haulers Intercepted . | . . . . . . . . . . . . . Recyclers Shooed 1 | . . . . . . . . . 1 . . . Parts Field Recycled . | . . . . . . . . . . . . . Retrieved Matter . | . . . . . . . . . . . . . Parts Self-Destructed 14 | . . . . . . . . . . 14 . . Prevented . | . . . . . . . . . . . . . Parts Restored . | . . . . . . . . . . . . . Kills | -11 -10 -9 -9 -9 -8 -8 -7 -6 -5 -5 -5 -4 ------- Run | Yrd Mat Mat Min Exi Min Mat Fac Fac Fac Upp Upp Fac Combat Hostiles Destroyed 58 | . . 13 . . 2 12 4 5 12 7 . 3 Guns 26 | . . 3 . . 2 3 4 2 11 . . 1 Cannons 8 | . . 3 . . . 3 . . . 2 . . AOE 23 | . . 7 . . . 6 . 3 . 5 . 2 Classes Destroyed 11 | 1 . 6 . . . 1 . 3 . . . . Worker 3 | . . 1 . . . 1 . . 1 . . . Builder 2 | . . 1 . . . . . . 1 . . . Recycler 1 | 1 . . . . . . . . . . . . Mechanic 1 | . . . . . . . . 1 . . . . Watcher 1 | . . . . . . 1 . . . . . . Swarmer 25 | . . 7 . . . 5 . 3 . 7 . 3 Grunt 23 | . . 4 . . 2 7 4 . 6 . . . Duelist 1 | . . 1 . . . . . . . . . . Sentry 5 | . . 1 . . . 2 . . 2 . . . Hunter 1 | . . . . . . . . 1 . . . . Programmer 5 | . . . . . . . . 1 4 . . . Best Kill Streak 7 | 1 . 7 . . 2 4 4 3 4 4 . 3 Combat Bots Only 5 | . . 5 . . 2 4 4 3 3 4 . 3 Max Kills in Single Turn 3 | 1 . 3 . . 1 2 1 2 2 1 . 3 Gunslinging . | . . . . . . . . . . . . . Exploded 3 | . . 3 . . . 2 . 2 . 1 . 2 Melee . | . . . . . . . . . . . . . Uniques/NPCs Destroyed . | . . . . . . . . . . . . . Combat | -11 -10 -9 -9 -9 -8 -8 -7 -6 -5 -5 -5 -4 -------- Run | Yrd Mat Mat Min Exi Min Mat Fac Fac Fac Upp Upp Fac Hostile Shots Fired 697 | . 9 33 . . . 100 17 51 182 84 . 221 Missed 226 | . 5 11 . . . 27 3 9 43 27 . 101 Hits 471 | . 4 22 . . . 73 14 42 139 57 . 120 Melee 1 | . . 1 . . . . . . . . . . Projectile 470 | . 4 21 . . . 73 14 42 139 57 . 120 Critical Strikes 19 | . . 1 . . . 5 . 2 8 1 . 2 Part Disruptions 1 | . . . . . . . . . . . . 1 Damage Taken 8196 | . 71 291 . . 37 1129 259 720 2750 921 . 2018 Core 2249 | . 10 57 . . . 117 . 83 372 446 . 1164 Absorbed by Shields . | . . . . . . . . . . . . . Redirected to Shielding 212 | . . . . . . . . . . . . 212 Ignored by Resistances 20 | . . . . . . . . . 20 . . . Core Remaining (%) 81 | 100 96 . . . 85 78 100 90 . . 18 . Volleys Fired 195 | 3 5 21 . . 2 35 15 27 67 17 . 3 Largest 2 | 2 2 2 . . 2 2 2 1 2 1 . 1 Hottest 115 | 80 115 115 . . 79 93 56 30 111 51 . 51 Shots Fired 292 | 6 7 29 . . 4 60 17 27 121 18 . 3 Gun 219 | 6 4 18 . . 4 30 17 22 117 . . 1 Cannon 36 | . . 6 . . . 19 . . . 9 . 2 Launcher 31 | . 3 5 . . . 11 . 3 . 9 . . Special 6 | . . . . . . . . 2 4 . . . Kinetic 158 | . . 12 . . 2 29 17 22 64 9 . 3 Thermal 91 | . 4 12 . . 2 20 . . 53 . . . Explosive 31 | . 3 5 . . . 11 . 3 . 9 . . Electromagnetic 6 | 6 . . . . . . . . . . . . Robot Hit Streak 16 | 2 2 6 . . 5 10 3 13 16 16 . . Robot Miss Streak 5 | 1 1 1 . . . 5 2 1 2 1 . 3 Penetration Max 1 | . . . . . . . 1 . 1 . . . Secondary Targets 4 | . . . . . . . . . 4 . . . Max Gunslinging Chain 1 | . . . . . . . . . 1 . . . Shots Hit Robots 202 | 4 2 19 . . 4 30 11 24 99 9 . . Core Hits 116 | 2 . 18 . . 3 26 10 10 33 6 . 8 Critical Kills 2 | . . . . . . . . . . 2 . . Critical Parts Destroyed 5 | . . . . . . . . 1 1 3 . . Critical Strikes 15 | . . . . . 1 3 . 1 5 5 . . Burn 5 | . . . . . 1 . . . 4 . . . Destroy 7 | . . . . . . . . 1 1 5 . . Blast 1 | . . . . . . 1 . . . . . . Sever 2 | . . . . . . 2 . . . . . . Melee Attacks 13 | . . . . . . 5 3 4 . 1 . . Impact . | . . . . . . . . . . . . . Slashing 12 | . . . . . . 5 3 4 . . . . Piercing 1 | . . . . . . . . . . 1 . . Sneak Attacks 3 | . . . . . . 2 . 1 . . . . Combat Hostiles . | . . . . . . . . . . . . . Follow-up Attacks . | . . . . . . . . . . . . . Damage Inflicted 6304 | 56 31 742 . . 58 1370 304 628 2428 450 . 237 Guns 3622 | 56 28 194 . . 58 260 271 337 2391 . . 27 Cannons 495 | . . 133 . . . 273 . . . 89 . . Explosions 1905 | . . 415 . . . 731 . 208 . 359 . 192 Melee 194 | . . . . . . 105 33 54 . 2 . . Ramming 88 | . 3 . . . . 1 . 29 37 . . 18 Kinetic 2603 | . . 199 . . 29 392 271 337 1259 89 . 27 Thermal 1458 | . 28 128 . . 29 141 . . 1132 . . . Explosive 1713 | . . 415 . . . 731 . 208 . 359 . . Electromagnetic 248 | 56 . . . . . . . . . . . 192 Impact . | . . . . . . . . . . . . . Slashing 192 | . . . . . . 105 33 54 . . . . Piercing 2 | . . . . . . . . . . 2 . . Highest Corruption 13 | . . . . . . . . 1 3 3 3 13 Average Corruption 2 | . . . . . . . . 1 1 3 3 4 Corruption Purged . | . . . . . . . . . . . . . Corruption Blocked . | . . . . . . . . . . . . . Effects 24 | . . . . . . . . 2 10 8 1 3 Message Errors 6 | . . . . . . . . . 2 3 . 1 Matter Fused 7 | . . . . . . . . . 4 2 . 1 Heat Flow Errors 2 | . . . . . . . . 2 . . . . Parts Fused 1 | . . . . . . . . . . . 1 . Data Loss (minor) 3 | . . . . . . . . . 2 1 . . Data Loss (major) 1 | . . . . . . . . . . 1 . . Misfires 3 | . . . . . . . . . 2 1 . . Misdirections 1 | . . . . . . . . . . . . 1 Overload Shots . | . . . . . . . . . . . . . Overflow Damage 138 | . . 66 . . . 18 . 13 . 41 . . Projectiles 3 | . . . . . . 3 . . . . . . Explosions 135 | . . 66 . . . 15 . 13 . 41 . . Melee . | . . . . . . . . . . . . . Knockbacks 11 | . . 2 . . . 5 . . 1 3 . . Impact 1 | . . . . . . . . . 1 . . . Kinetic 10 | . . 2 . . . 5 . . . 3 . . Secondary . | . . . . . . . . . . . . . Self-Inflicted Damage 214 | . 25 45 . . . 58 . 35 . 24 . 27 Shots 8 | . 1 1 . . . 2 . 1 . 2 . 1 Rammed 15 | . . . . . . . . 4 4 . . 7 Targets Rammed 18 | . 2 . . . . 1 . 4 4 . . 7 Kicked 3 | . 2 . . . . 1 . . . . . . Crushed . | . . . . . . . . . . . . . Highest Temperature 399 | 54 108 105 . . . 342 15 252 399 22 . 1 Average Temperature 91 | 29 58 31 . . . 120 7 49 143 13 . 1 Received Heat Transfer 1778 | . 24 87 . . 18 468 126 18 943 12 . 82 Effects 6 | . . . . . . 4 . . 2 . . . Shutdowns 1 | . . . . . . . . . 1 . . . Interference 4 | . . . . . . 4 . . . . . . Short Circuit 1 | . . . . . . . . . 1 . . . Siege Activations . | . . . . . . . . . . . . . Martial Activations . | . . . . . . . . . . . . . Shielding Activations . | . . . . . . . . . . . . . Robots Disrupted . | . . . . . . . . . . . . . Combat Hostiles . | . . . . . . . . . . . . . Robots Corrupted . | . . . . . . . . . . . . . Combat Hostiles . | . . . . . . . . . . . . . Parts Fried 1 | . . . . . . . . . . 1 . . Impact Corruptions . | . . . . . . . . . . . . . Robots Melted 1 | . . . . . . . . . 1 . . . Combat Hostiles 1 | . . . . . . . . . 1 . . . Parts Melted 4 | . . . . . 1 . . . 3 . . . Heat Transferred 3064 | . 74 370 . . 148 333 . . 2139 . . . Parts Sabotaged . | . . . . . . . . . . . . . Parts Stolen . | . . . . . . . . . . . . . Parts Stripped . | . . . . . . . . . . . . . Power Chain Reactions . | . . . . . . . . . . . . . Alert | -11 -10 -9 -9 -9 -8 -8 -7 -6 -5 -5 -5 -4 ------- Run | Yrd Mat Mat Min Exi Min Mat Fac Fac Fac Upp Upp Fac Maximum Alert Level 1 | . . . . . . 1 . . . . . . Low Security (%) 95 | 100 100 100 100 . 100 78 100 100 100 . . 100 Level 1 4 | . . . . . . 21 . . . . . . Level 2 . | . . . . . . . . . . . . . Level 3 . | . . . . . . . . . . . . . Level 4 . | . . . . . . . . . . . . . Level 5 . | . . . . . . . . . . . . . High Security . | . . . . . . . . . . . . . Max Security . | . . . . . . . . . . . . . Peak Influence 326 | 5 40 166 48 . 71 326 80 100 79 . . 123 Initial 60 | . . . 48 . . . 16 19 39 . . 60 Average 40 | 1 8 71 4 . 18 117 11 7 19 . . 62 Influence Increases 2653 | 5 46 372 . . 81 745 121 201 389 400 . 293 Destroy 0b10 Robot/C 1420 | . . 260 . . 60 480 80 100 240 140 . 60 Destroy 0b10 Robot/NC 50 | 5 . 10 . . . 20 . 5 10 . . . Destroy Leader 274 | . . 50 . . 10 84 10 30 60 20 . 10 Allied During Kill 54 | . . . . . 11 43 . . . . . . Successful Hack 76 | . 6 . . . . 22 . 5 2 . . 41 Disable Machine 135 | . 15 15 . . . 15 15 30 15 . . 30 Destroy Structure 149 | . 25 37 . . . 51 1 31 2 . . 2 Partial Spotted 45 | . . . . . . . . . . . . 45 Lose Combat Pursuer 450 | . . . . . . 30 15 . 60 240 . 105 Influence Decreases 2550 | 5 46 246 126 . 81 707 119 159 471 254 49 287 Entered New Map 230 | . . . 78 . . . 22 21 43 . 29 37 Time Decay 1667 | 5 46 246 48 . 71 467 87 98 285 174 20 120 Lost Part 463 | . . . . . 10 50 10 40 143 80 . 130 Lost Ally 40 | . . . . . . 40 . . . . . . Purge Threat 150 | . . . . . . 150 . . . . . . Squads Dispatched 13 | . 1 1 . . . 2 . 2 3 . . 4 Investigation 6 | . . 1 . . . 2 . 1 . . . 2 Extermination 4 | . . . . . . . . 1 2 . . 1 Reinforcement 3 | . 1 . . . . . . . 1 . . 1 Assault . | . . . . . . . . . . . . . Garrison . | . . . . . . . . . . . . . Intercept . | . . . . . . . . . . . . . Searches Triggered . | . . . . . . . . . . . . . Construction Impeded . | . . . . . . . . . . . . . Haulers Reinforced . | . . . . . . . . . . . . . Active Scanning Responses . | . . . . . . . . . . . . . Cargo Convoy Interrupts . | . . . . . . . . . . . . . Stealth | -11 -10 -9 -9 -9 -8 -8 -7 -6 -5 -5 -5 -4 --------- Run | Yrd Mat Mat Min Exi Min Mat Fac Fac Fac Upp Upp Fac Distress Signals 8 | . 1 3 . . . 3 1 . . . . . Communications Jammed . | . . . . . . . . . . . . . Distress Signals . | . . . . . . . . . . . . . Times Spotted 138 | . 6 16 . . 3 27 8 9 20 26 . 23 Peak Tracking Total 11 | . 6 6 . . 3 6 5 4 6 7 . 11 Tactical Retreats 17 | . . . . . . 2 1 . 3 9 . 2 Traps | -11 -10 -9 -9 -9 -8 -8 -7 -6 -5 -5 -5 -4 ------- Run | Yrd Mat Mat Min Exi Min Mat Fac Fac Fac Upp Upp Fac Traps Triggered 5 | . . . . . . 2 . . 3 . . . Indirectly . | . . . . . . . . . . . . . Trap Hack Attempts . | . . . . . . . . . . . . . Triggered . | . . . . . . . . . . . . . Disarmed . | . . . . . . . . . . . . . Reprogrammed . | . . . . . . . . . . . . . Reused . | . . . . . . . . . . . . . Traps Reconfigurated 3 | . . . . . . 2 . . 1 . . . Traps Extracted . | . . . . . . . . . . . . . Installed . | . . . . . . . . . . . . . Triggered . | . . . . . . . . . . . . . Machines | -11 -10 -9 -9 -9 -8 -8 -7 -6 -5 -5 -5 -4 ---------- Run | Yrd Mat Mat Min Exi Min Mat Fac Fac Fac Upp Upp Fac Machines Disabled 9 | . 1 1 . . . 1 1 2 1 . . 2 Max in Single Turn 2 | . 1 1 . . . 1 1 1 1 . . 2 Garrison Access 1 | . . . . . . . . . 1 . . . Machines Repaired . | . . . . . . . . . . . . . Machines Dismantled . | . . . . . . . . . . . . . Machines Sabotaged . | . . . . . . . . . . . . . Overloaded Fab Kills . | . . . . . . . . . . . . . Hacking | -11 -10 -9 -9 -9 -8 -8 -7 -6 -5 -5 -5 -4 --------- Run | Yrd Mat Mat Min Exi Min Mat Fac Fac Fac Upp Upp Fac Machines Accessed 12 | . 1 1 . 1 . 4 . 1 2 . . 2 Terminals 9 | . 1 1 . . . 4 . 1 . . . 2 Fabricators . | . . . . . . . . . . . . . Repair Stations 1 | . . . . . . . . . 1 . . . Recycling Units . | . . . . . . . . . . . . . Scanalyzers . | . . . . . . . . . . . . . Garrison Access 1 | . . . . . . . . . 1 . . . Total Hacks 33 | . 1 3 . 1 . 12 . 3 3 . . 10 Successful 18 | . 1 1 . 1 . 5 . 2 3 . . 5 Failed 15 | . . 2 . . . 7 . 1 . . . 5 Catastrophic 2 | . . . . . . 1 . . . . . 1 Database Lockouts . | . . . . . . . . . . . . . Manual 10 | . 1 . . 1 . 6 . 1 . . . 1 Terminals 29 | . 1 3 . . . 12 . 3 . . . 10 Fabricators . | . . . . . . . . . . . . . Repair Stations 2 | . . . . . . . . . 2 . . . Recycling Units . | . . . . . . . . . . . . . Scanalyzers . | . . . . . . . . . . . . . Garrison Access 1 | . . . . . . . . . 1 . . . Terminal Hacks 14 | . 1 1 . 1 . 5 . 1 . . . 5 Record 4 | . . . . . . 1 . . . . . 3 Prototype ID Bank 2 | . . . . . . 1 . . . . . 1 Level Access Points 1 | . . . . . . 1 . . . . . . Branch Access Points 1 | . . . . . . . . 1 . . . . Unreport Threat 1 | . . . . . . 1 . . . . . . Zone Layout 4 | . 1 1 . . . 1 . . . . . 1 Proto ID Catalog 1 | . . . . 1 . . . . . . . . Fabricator Hacks . | . . . . . . . . . . . . . Repair Station Hacks 2 | . . . . . . . . . 2 . . . Scan Component 1 | . . . . . . . . . 1 . . . Repair 1 | . . . . . . . . . 1 . . . Recycling Unit Hacks . | . . . . . . . . . . . . . Scanalyzer . | . . . . . . . . . . . . . Garrison Access Hacks 1 | . . . . . . . . . 1 . . . Seal Access 1 | . . . . . . . . . 1 . . . Unauthorized Hacks 1 | . . . . . . . . 1 . . . . Terminals 1 | . . . . . . . . 1 . . . . Assimilate 1 | . . . . . . . . 1 . . . . Fabricators . | . . . . . . . . . . . . . Repair Stations . | . . . . . . . . . . . . . Recycling Units . | . . . . . . . . . . . . . Scanalyzers . | . . . . . . . . . . . . . Garrison Access . | . . . . . . . . . . . . . Data Cores Recovered . | . . . . . . . . . . . . . Used . | . . . . . . . . . . . . . Hacking Detections 8 | . . 1 . . . 4 . 1 . . . 2 Full Trace Events 5 | . . 1 . . . 1 . 1 . . . 2 Feedback Events . | . . . . . . . . . . . . . Feedback Blocked . | . . . . . . . . . . . . . Robot Schematics Acquired . | . . . . . . . . . . . . . Robots Built . | . . . . . . . . . . . . . Authchips . | . . . . . . . . . . . . . Time . | . . . . . . . . . . . . . Total Robot Build Rating . | . . . . . . . . . . . . . Part Schematics Acquired . | . . . . . . . . . . . . . Parts Built . | . . . . . . . . . . . . . Authchips . | . . . . . . . . . . . . . Time . | . . . . . . . . . . . . . Total Part Build Rating . | . . . . . . . . . . . . . Part Studies Acquired . | . . . . . . . . . . . . . Parts Repaired . | . . . . . . . . . . . . . Time 50 | . . . . . . . . . 50 . . . Parts Recycled . | . . . . . . . . . . . . . Recycled Matter . | . . . . . . . . . . . . . Retrieved Matter . | . . . . . . . . . . . . . Retrieved Components . | . . . . . . . . . . . . . Parts Scanalyzed . | . . . . . . . . . . . . . Part Schematics Acquired . | . . . . . . . . . . . . . Parts Damaged . | . . . . . . . . . . . . . Bothacking | -11 -10 -9 -9 -9 -8 -8 -7 -6 -5 -5 -5 -4 ------------ Run | Yrd Mat Mat Min Exi Min Mat Fac Fac Fac Upp Upp Fac Used RIF Installer . | . . . . . . . . . . . . . Robots Hacked 4 | . . . . . . . . 1 3 . . . Non-combat 4 | . . . . . . . . 1 3 . . . Combat . | . . . . . . . . . . . . . Robot Hacks Applied 4 | . . . . . . . . 1 3 . . . parse_system 1 | . . . . . . . . 1 . . . . no_distress 2 | . . . . . . . . . 2 . . . check_alert 1 | . . . . . . . . . 1 . . . Relay Couplers Released . | . . . . . . . . . . . . . Fabnet Peak Effective % . | . . . . . . . . . . . . . Robots Rewired . | . . . . . . . . . . . . . Allies Hacked . | . . . . . . . . . . . . . Hacks Repelled . | . . . . . . . . . . . . . Allies | -11 -10 -9 -9 -9 -8 -8 -7 -6 -5 -5 -5 -4 -------- Run | Yrd Mat Mat Min Exi Min Mat Fac Fac Fac Upp Upp Fac Total Allies 5 | . . . 3 . . . . 1 . 1 . . Largest Group 3 | . . . 3 3 3 3 . 1 . 1 . . Highest-Rated Group 41 | . . . 40 40 40 40 . 10 . 41 . . Highest-Rated Ally 41 | . . . 16 16 16 16 . 10 . 41 . . Total Orders 2 | . . . . . . . . 2 . . . . STAY 1 | . . . . . . . . 1 . . . . ROAM 1 | . . . . . . . . 1 . . . . Ally Attacks 43 | . . . . . 11 32 . . . . . . Total Damage 1374 | . . . . . 125 1249 . . . . . . Kills 15 | . . . . . 1 14 . . . . . . Allies Corrupted . | . . . . . . . . . . . . . Allies Melted . | . . . . . . . . . . . . . Turrets Deployed 3 | . . . . . . 3 . . . . . . Intel | -11 -10 -9 -9 -9 -8 -8 -7 -6 -5 -5 -5 -4 ------- Run | Yrd Mat Mat Min Exi Min Mat Fac Fac Fac Upp Upp Fac Active Infowar (turns) 5391 | . . 516 677 606 284 896 319 1027 987 3 . 76 Sensors 4406 | . . 516 677 606 284 896 319 965 140 3 . . Terrain 1243 | . . . . . . . . 256 987 . . . Seismic 76 | . . . . . . . . . . . . 76 Jamming 1292 | . . . . . . . . 858 434 . . . Robot Analysis Total . | . . . . . . . . . . . . . Derelict Logs Recovered 2 | . . . 1 . . . . . . 1 . . Drone Launches . | . . . . . . . . . . . . . Drone Recoveries . | . . . . . . . . . . . . . Exploration | -11 -10 -9 -9 -9 -8 -8 -7 -6 -5 -5 -5 -4 ------------- Run | Yrd Mat Mat Min Exi Min Mat Fac Fac Fac Upp Upp Fac Turns Passed 7591 | 85 239 643 677 606 284 1245 639 1041 1385 453 41 253 Spaces Moved 4849 | 45 179 355 356 314 223 708 290 487 691 648 41 512 Core 102 | 11 . . . . . . . . 7 7 41 36 Treads 758 | . . . . . . . . 162 596 . . . Legs 2784 | 34 179 355 356 314 223 708 290 325 . . . . Wheels . | . . . . . . . . . . . . . Hover . | . . . . . . . . . . . . . Flight 1205 | . . . . . . . . . 88 641 . 476 Fastest Speed 30 | 50 120 120 190 190 120 120 193 160 30 30 100 39 Average Speed 136 | 137 120 155 190 190 120 152 193 182 157 58 100 43 Slowest Speed 950 | 250 120 190 190 190 190 330 193 195 950 195 100 200 Overloaded Moves . | . . . . . . . . . . . . . Propulsion Burnouts . | . . . . . . . . . . . . . Robots Hopped 14 | . . . . . . . . . . 3 . 11 Potential Cave-ins . | . . . . . . . . . . . . . Cave-ins Triggered . | . . . . . . . . . . . . . Exploration Rate (%) 31 | 5 33 18 74 55 49 51 5 10 15 72 11 11 Regions Visited 12 Branch Regions 5 Pre-discovered Areas . | . . . . . . . . . . . . . Known Exits Taken 6 | . . . 1 . . 1 . 1 1 1 1 . Unknown Exits Taken 6 | 1 1 1 . 1 1 . 1 . . . . . Scrap Searched 7 | . . . 3 . 1 . . . . 3 . . Spaces Dug 1 | . . . . . . 1 . . . . . . Terrain Destroyed 206 | . 25 52 . . . 62 . 30 . 37 . . Melee . | . . . . . . . . . . . . . Projectile 3 | . . . . . . 3 . . . . . . AOE 203 | . 25 52 . . . 59 . 30 . 37 . . Terrain Rammed . | . . . . . . . . . . . . . Walls Destroyed . | . . . . . . . . . . . . . Machines Disabled . | . . . . . . . . . . . . . Actions | -11 -10 -9 -9 -9 -8 -8 -7 -6 -5 -5 -5 -4 --------- Run | Yrd Mat Mat Min Exi Min Mat Fac Fac Fac Upp Upp Fac Total 5464 | 59 194 414 357 324 234 801 346 603 869 697 40 526 Wait 186 | . . 10 . . . 14 29 55 55 22 . 1 Move 4814 | 44 178 354 355 313 222 707 289 486 690 641 40 495 Hop 9 | . . . . . . . . . . 3 . 6 Pick Up 42 | 6 2 8 1 4 1 5 2 5 7 . . 1 Fast Attach 61 | 6 1 7 . . 1 8 3 5 12 9 . 9 Attach 19 | . . . . . 1 1 . 4 9 1 . 3 Detach 4 | . . . . . . 1 . . . 2 . 1 Swap 45 | . 4 7 1 . 4 7 2 8 12 . . . Drop 43 | . 2 7 . . 3 9 3 5 13 1 . . Fire 195 | 3 5 21 . . 2 35 15 27 67 17 . 3 Melee 13 | . . . . . . 5 3 4 . 1 . . Ram 8 | . . . . . . . . . 1 . . 7 Kick 3 | . 2 . . . . 1 . . . . . . Crush 7 | . . . . . . . . 4 3 . . . Escape Stasis . | . . . . . . . . . . . . . Rewire 15 | . . . . 7 . 8 . . . . . . Trap . | . . . . . . . . . . . . . Miscellaneous . | . . . . . . . . . . . . . Route ------- -11/Scrapyard -10/Materials -9/Materials -9/Mines -9/Exiles -8/Mines -8/Materials (discovered 4 exits: *Fac x3 / [*Sto]) -7/Factory -6/Factory (discovered 3 exits: *Fac / Low x2) -5/Factory -5/Upper Caves -5/Upper Caves -4/Factory History --------- Turn | Location | Event 18 | -11/Scrapyard | Discovered new exit (range 16) 86 | -11/Scrapyard | Entered Materials 218 | -10/Materials | Discovered new exit (range 6) 304 | -10/Materials | Build established: Mutant 325 | -10/Materials | Entered another Materials area 325 | -9/Materials | Evolved 2 slots: Propulsion x1, Utility x1 576 | -9/Materials | Discovered new exit (range 15) 968 | -9/Materials | Entered Mines 1086 | -9/Mines | Assisted by bots powering up and referring to "LRC-V3" 1339 | -9/Mines | Identified exit to Exiles 1561 | -9/Mines | A weapon hastily lodged in a ceiling crevice suddenly fell to the ground 1634 | -9/Mines | Deemed a non-threat by the Exiles lab entrance 1645 | -9/Mines | Entered Exiles 1645 | -9/Exiles | Accompanied by 3 allies 1676 | -9/Exiles | Discovered new exit (range 15) 1691 | -9/Exiles | Met 8R-AWN 1723 | -9/Exiles | Met EX-HEX 1797 | -9/Exiles | Met EX-BIN 1820 | -9/Exiles | Aligned with FarCom system 1822 | -9/Exiles | Given EX-Vault access code 1886 | -9/Exiles | Opened EX-Vault 1894 | -9/Exiles | Found Prototype Device 1904 | -9/Exiles | Found Deploy-a-Sentry 1907 | -9/Exiles | Found Deploy-a-Sentry 1910 | -9/Exiles | Found Deploy-a-Sentry 1941 | -9/Exiles | Identified Trap Reconfigurator 1979 | -9/Exiles | Warned to stay clear of 0b10 Research branches 2044 | -9/Exiles | Met EX-DEC 2251 | -9/Exiles | Stole two prototypes: Deploy-a-Sentry, Trap Reconfigurator 2251 | -9/Exiles | Entered Mines 2251 | -8/Mines | Accompanied by 3 allies 2487 | -8/Mines | Discovered new exit (range 16) 2535 | -8/Mines | Entered Materials 2535 | -8/Materials | Accompanied by 3 allies 2535 | -8/Materials | Evolved 2 slots: Utility x2 2726 | -8/Materials | Build established: Skirmisher 2779 | -8/Materials | DAS Turret deployed 2792 | -8/Materials | DAS Turret deployed 3028 | -8/Materials | DAS Turret deployed 3173 | -8/Materials | Lost 3 parts (1n1u1w) 3665 | -8/Materials | Discovered new exit (range 15) 3696 | -8/Materials | Identified exit to Factory 3780 | -8/Materials | Entered Factory 3780 | -7/Factory | Evolved 2 slots: Power x1, Utility x1 3782 | -7/Factory | FarCom data flow suspended 3838 | -7/Factory | Discovered new exit (range 7) 4086 | -7/Factory | Build established: Mutant 4419 | -7/Factory | Entered another Factory area 4419 | -6/Factory | Evolved 2 slots: Utility x2 4895 | -6/Factory | Identified exit to Lower Caves 5065 | -6/Factory | Lost 3 parts (1p1n1u) 5436 | -6/Factory | Discovered new exit (range 15) 5458 | -6/Factory | Identified exit to Factory 5460 | -6/Factory | Entered another Factory area 5460 | -5/Factory | Evolved 2 slots: Utility x2 5936 | -5/Factory | Lost 3 parts (1p2u) 6290 | -5/Factory | Discovered new exit (range 12) 6312 | -5/Factory | Identified exit to Upper Caves 6505 | -5/Factory | Build established: Scavenger-Mutant 6751 | -5/Factory | Lost 6 parts (2n2u2w) 6845 | -5/Factory | Entered Upper Caves 6861 | -5/Upper Caves | Lost 6 parts (1p1n2u2w) 6969 | -5/Upper Caves | Identified exit to Upper Caves 6972 | -5/Upper Caves | Lost 3 parts (1p2n) 7022 | -5/Upper Caves | Spotted B-75 Beast 7024 | -5/Upper Caves | Core integrity fell below 50% 7290 | -5/Upper Caves | Core integrity fell below 20% 7298 | -5/Upper Caves | Entered another Upper Caves area 7323 | -5/Upper Caves | Lost 3 parts (1p2n) 7330 | -5/Upper Caves | Discovered new exit (range 6) 7334 | -5/Upper Caves | Identified exit to Factory 7339 | -5/Upper Caves | Entered Factory 7339 | -4/Factory | Evolved 2 slots: Utility x2 7451 | -4/Factory | Spotted B-86 Titan 7557 | -4/Factory | Core integrity fell below 50% 7576 | -4/Factory | Core integrity fell below 20% 7587 | -4/Factory | System corruption reached 10% 7592 | -4/Factory | Destroyed by B-86 Titan with Hardcell Cannon Last Messages --------------- 07575_ Neutrino Reactor explodes. 07575_ S-27 Virus destroyed. 07575_ Neutrino Reactor explodes. 07575_ S-27 Virus destroyed. 07576_ System corrupted: Matter fused (-6). 07578_ U-05 Engineer builds a Wall. 07582_ U-05 Engineer lays Concrete. 07582_ R-10 Processor collects Corrupted Autogun. 07583_ Acquired Lgt. Nuclear Core. 07583_ U-05 Engineer lays Concrete. 07584_ Critical hit (Burn: +50). 07585_ U-05 Engineer builds a Wall. 07586_ Lgt. Nuclear Core destroyed. 07586_ Acquired Corrupted VTOL Module. 07586_ Integrated Corrupted VTOL Module (+10). 07587_ R-10 Processor collects Corrupted VTOL Module. 07589_ U-05 Engineer lays Concrete. 07591_ U-05 Engineer builds a Wall. Map ----- +----------------------------------------------------+ | ?????????????????????????????????????????????????? | | ???????????????????#######????????##############?? | | ???????????????????# #????????# ] #?? | | ???????????????????# = #????????# #?? | | ???????????????????# [ *#????????# #?? | | ???????????????????# = ########## #?? | | ???????????????????# + ## """ """ #?? | | ???????????????????# # ## """ """ #?? | | ???????????????????# # ## """ """ #?? | | ???????????????????# # ## #?? | | ???????????????????# # ## #?? | | #########??????????# # ## "" "" #?? | | ################## ## ""S"" #?? | | """ """ # ] ######## ## """" #?? | | """ """ # ## ########/#+####?? | | """ """ # ## #????? | | # ## #????? | | """ """ + " #????? | | """ """ # ############## """% #????? | | """ """ # #??## # """"" #????? | | # #???; # =""""" #????? | | # #???#= [ # %= #????? | | ### ###???# s # #????? | | #?# #?????# % # #????? | | #########?# ##????# %s # "" #????? | | ??????????# T#????# @ # "F"" #????? | | ??????????# #????# g # """" #????? | | ?? ??????# ##????# Rgg # % #????? | | ? ????# #?????##; #g;## ###### | | ? ? R??# #??????#; | | """ # #??????#; | | " #??????#; [ | | ?"""""" # #??? # % [% " | | ???"""" # #" #u " | | ???"""" ?# # # " | | ???"""" ??# " # BB | | ??? ???# # # BB "" | | ??? ???# # ! + """ | | ??####????# # ! # """ | | ??????????# # # | | ??????????# " # | | ??????????# # # #######+ | | ??????????# # # ???????? | | ??????????# #?### ### #""" #??????????? | | ??????????# #?????#???? ?####????????????" " | | ??????????# #??????????????????????????????" " | | ??????????# #?????????????????????????????"" " | | ??????????#% #????????????????????????????? | | ??????????#= #????????????????????????????? | | ??????????# #########????????????????????? | +----------------------------------------------------+ Best States ------------- Heat Dissipation 78 Energy Generation 29 Energy Capacity 715 Matter Stores 300 Matter Capacity 300 Sight Range 16 Robot Scan Range 15 Terrain Scan Range 16 Terrain Scan Density 110 Jamming Range 12 Additional Mass Support 9 Armor Coverage 600 Resistance: KI 25 Propulsion Shielding 66 Evasion (%) 64 Targeting Accuracy 5 Recoil Reduction 3 Offensive Hacking 10 Defensive Hacking 10 Item Schematics ----------------- None Robot Schematics ------------------ None Fabricated ------------ Nothing Repaired ---------- Nothing Studied --------- None Alien Tech Used ----------------- None Achievements -------------- Cya! Morally Flexible No Signal Challenges ------------ None Game ------ Seed CoolingProjectileBasin Manual? 0 Play Time 01:11:04 Cumulative 30.9 hours Start 2026.08.31 @ 16:56:59 End 2026.08.31 @ 18:06:06 Sessions 1 Manual Loads 0 Difficulty Rogue Special Mode None Game No. 47 Rogue 42 Adventurer 1 Explorer 4 Win Type - Total 0 Types 0/0/0/0/0/0/0/0/0/0 Lore% 10 Gallery% 22 Achievement% 20 Wizard Run 0 Options --------- Layout 1 ASCII 0 Keyboard 0 Movement Arrows Keybinds 0 Fullscreen 1 Font 24/Smallcaps Map View 50x35 Zoom Use 0% Tactical HUD 1 Map Filters NONE Filters NONE Steam 1 RUN: 90cb613f-758d-437e-abff-0f788fec8eb4